bitfinex-derivatives/quotes_BTCF0:USTF0_20250830
["timestamp","ask_amount","ask_price","bid_price","bid_amount"]
[1756560089247,1.02618177,108450.0,108440.0,0.09496]
[1756560089443,1.33879632,108450.0,108440.0,0.09496]
[1756560089747,1.79959632,108450.0,108430.0,0.06]
[1756560089951,0.31261455,108440.0,108430.0,0.09796]
[1756560090152,0.40542455,108440.0,108430.0,0.09696]
[1756560090648,0.09281,108440.0,108430.0,0.40757455]
[1756560090854,0.09181,108440.0,108430.0,0.40757455]
[1756560091055,0.09181,108440.0,108430.0,0.40857455]
[1756560091755,0.09181,108440.0,108430.0,0.41057455]
[1756560092852,0.14130209,108440.0,108430.0,0.41057455]
[1756560094259,0.45391664,108440.0,108430.0,0.09796]
[1756560094459,0.86522455,108440.0,108430.0,0.003]
[1756560094765,0.86522455,108440.0,108430.0,0.00761]
[1756560095057,0.93127632,108440.0,108430.0,0.00761]
[1756560095255,0.94807701,108440.0,108430.0,0.00761]
[1756560095654,1.30309132,108440.0,108430.0,0.00716635]
[1756560098868,2.17021132,108440.0,108430.0,0.00716635]
[1756560100264,2.17021132,108440.0,108430.0,0.00461]
[1756560101066,1.30309132,108440.0,108430.0,0.00461]
[1756560101271,2.17017132,108440.0,108430.0,0.00461]
[1756560101971,0.99047677,108440.0,108430.0,0.04178]
[1756560102271,2.17017132,108440.0,108430.0,0.00461]
[1756560104566,2.08731886,108440.0,108430.0,0.00461]
[1756560105475,1.22023886,108440.0,108430.0,0.00461]
[1756560105773,2.08727886,108440.0,108430.0,0.09856]
[1756560105977,2.08727886,108440.0,108430.0,0.04178]
[1756560106172,2.08727886,108440.0,108430.0,0.00461]
[1756560106672,2.08727886,108440.0,108430.0,0.04178]
[1756560107073,2.17013132,108440.0,108430.0,0.04178]
[1756560107474,2.17013132,108440.0,108430.0,0.00461]
[1756560107669,2.08727886,108440.0,108430.0,0.00461]
[1756560108078,2.08719886,108440.0,108430.0,0.00461]
[1756560109175,2.08719886,108440.0,108430.0,0.04178]
[1756560109777,2.08719886,108440.0,108430.0,0.00461]
[1756560111775,2.08719886,108440.0,108420.0,0.05678]
[1756560112083,0.93302419,108430.0,108420.0,0.09395]
[1756560112283,0.93302419,108430.0,108420.0,0.03717]
[1756560112483,0.93302419,108430.0,108420.0,0.09395]
[1756560113088,0.93302419,108430.0,108420.0,0.09856]
[1756560113490,0.93302419,108430.0,108420.0,0.10056]
[1756560113685,0.62040964,108430.0,108420.0,0.10156]
[1756560113885,0.93302419,108430.0,108420.0,0.10156]
[1756560114289,0.86692455,108430.0,108420.0,0.04478]
[1756560114691,0.86692455,108430.0,108420.0,0.10156]
[1756560115288,0.45431,108430.0,108420.0,0.10156]
[1756560115486,0.48314578,108440.0,108420.0,1.3375891]
[1756560115787,1.38728578,108440.0,108430.0,0.40656455]
[1756560116285,1.69990033,108440.0,108430.0,0.40656455]
[1756560116492,1.69990751,108440.0,108430.0,0.40656455]
[1756560117090,1.33910751,108440.0,108430.0,0.40656455]
[1756560117286,1.27296455,108440.0,108430.0,0.40656455]
[1756560117489,1.27296455,108440.0,108430.0,0.09395]
[1756560117884,1.33911141,108440.0,108430.0,0.09395]
[1756560118192,1.02649686,108440.0,108430.0,0.09395]
[1756560118388,1.19790278,108440.0,108430.0,0.09395]
[1756560119693,1.24608823,108440.0,108430.0,0.09395]
[1756560119992,1.55870278,108440.0,108430.0,0.09395]
[1756560120191,1.65870278,108440.0,108430.0,0.09395]
[1756560120492,1.69680278,108440.0,108430.0,0.09395]
[1756560120691,1.63065592,108440.0,108430.0,0.09395]
[1756560120891,1.63065592,108440.0,108420.0,0.00461]
[1756560120892,1.98650727,108440.0,108420.0,0.00461]
[1756560121089,0.91529701,108430.0,108420.0,0.00461]
[1756560121292,0.86875366,108430.0,108420.0,0.00461]
[1756560121501,1.61092814,108430.0,108410.0,0.01852303]
[1756560121693,1.9301591,108420.0,108410.0,0.00373755]
[1756560121891,2.13263067,108420.0,108410.0,4.368e-05]
[1756560122091,2.22933814,108420.0,108410.0,4.368e-05]
[1756560122396,2.20671903,108420.0,108410.0,4.368e-05]
[1756560123094,2.20671903,108420.0,108390.0,0.05325]
[1756560123396,0.50442241,108400.0,108390.0,0.08997632]
[1756560123596,1.68363696,108400.0,108390.0,0.08997632]
[1756560124187,1.32283696,108400.0,108390.0,0.08997632]
[1756560124388,1.3424291,108400.0,108390.0,0.08997632]
[1756560124695,1.38828808,108400.0,108390.0,0.09097632]
[1756560125291,1.07571353,108400.0,108390.0,0.09097632]
[1756560125490,1.38832808,108400.0,108390.0,0.09197632]
[1756560125986,1.38832808,108400.0,108390.0,0.09097632]
[1756560126386,1.07567353,108400.0,108390.0,0.09097632]
[1756560126688,1.07562546,108400.0,108390.0,0.45177632]
[1756560126888,1.38824001,108400.0,108390.0,0.09097632]
[1756560127189,1.00954112,108400.0,108390.0,0.09097632]
[1756560127384,1.07562586,108400.0,108390.0,0.09097632]
[1756560127589,1.38824041,108400.0,108390.0,0.09097632]
[1756560128494,0.52164041,108400.0,108390.0,0.40359087]
[1756560128697,1.38820041,108400.0,108390.0,0.40359087]
[1756560128899,1.07558586,108400.0,108390.0,0.76439087]
[1756560131601,1.07554586,108400.0,108390.0,0.76439087]
[1756560131903,1.07554586,108400.0,108390.0,0.45177632]
[1756560132196,1.43634586,108400.0,108390.0,0.09102]
[1756560132503,1.38816041,108400.0,108390.0,0.09102]
[1756560132704,1.74896041,108400.0,108390.0,0.09102]
[1756560132903,1.84896041,108400.0,108390.0,0.03777]
[1756560133406,1.84896041,108400.0,108390.0,0.09102]
[1756560135910,1.84896041,108400.0,108390.0,0.03777]
[1756560136513,1.84896041,108400.0,108390.0,0.09102]
[1756560137010,1.84896041,108400.0,108390.0,0.03777]
[1756560139206,1.53634586,108400.0,108390.0,0.03777]
[1756560139397,1.84898413,108400.0,108390.0,0.03777]
[1756560140809,0.17062958,108400.0,108390.0,0.98505651]
[1756560141007,0.06913862,108400.0,108390.0,2.21221651]
[1756560141508,0.01961586,108400.0,108390.0,2.21221651]
[1756560141711,0.11513124,108410.0,108390.0,2.21221651]
[1756560141906,0.11513124,108410.0,108400.0,0.76343455]
[1756560142107,0.06560848,108410.0,108400.0,0.76343455]
[1756560142311,0.0691481,108410.0,108400.0,1.01343455]
[1756560142509,0.04953224,108410.0,108400.0,1.01343455]
[1756560142707,0.0691481,108410.0,108400.0,1.01343455]
[1756560142913,0.04953224,108410.0,108400.0,1.01343455]
[1756560143114,0.0701481,108410.0,108400.0,1.01343455]
[1756560144309,0.0701481,108410.0,108400.0,1.10567865]
[1756560144500,0.0112981,108410.0,108400.0,1.10567865]
[1756560144704,0.09658853,108420.0,108400.0,1.05242865]
[1756560144909,0.09658853,108420.0,108410.0,1.61135843]
[1756560145409,0.03907,108430.0,108420.0,0.03677]
[1756560145614,0.05633,108440.0,108420.0,1.0760491]
[1756560145811,0.0954,108440.0,108430.0,0.76343455]
[1756560146408,0.14222364,108440.0,108430.0,0.76343455]
[1756560147308,0.39850819,108440.0,108420.0,0.72766455]
[1756560147513,0.0954,108430.0,108420.0,0.76443455]
[1756560148315,0.0954,108430.0,108420.0,0.76543455]
[1756560148809,0.0954,108430.0,108420.0,0.76443455]
[1756560149706,0.0954,108430.0,108420.0,0.76543455]
[1756560153317,0.10387364,108440.0,108420.0,1.0780491]
[1756560153522,0.13922364,108440.0,108430.0,0.76360455]
[1756560154919,0.14022364,108440.0,108430.0,0.76360455]
[1756560156418,0.45283819,108440.0,108430.0,0.76360455]
[1756560157724,0.45283819,108440.0,108430.0,0.83667664]
[1756560158723,0.14022364,108440.0,108430.0,0.83667664]
[1756560158924,0.45283819,108440.0,108430.0,0.83667664]
[1756560159325,0.14022364,108440.0,108430.0,0.83667664]
[1756560161524,0.04782364,108440.0,108430.0,0.83667664]
[1756560161724,0.14022364,108440.0,108430.0,0.83667664]
[1756560164725,0.14022364,108440.0,108430.0,0.52406209]
[1756560164926,0.14022364,108440.0,108430.0,0.83667664]
[1756560165628,0.20630838,108440.0,108430.0,0.83667664]
[1756560165924,0.20630838,108440.0,108430.0,0.52406209]
[1756560166120,0.51892293,108440.0,108430.0,0.83667664]
[1756560166921,0.20630838,108440.0,108430.0,0.52406209]
[1756560167120,0.20630838,108440.0,108430.0,0.83667664]
[1756560170431,0.14022364,108440.0,108430.0,0.83667664]
[1756560172431,0.15990794,108440.0,108430.0,0.83667664]
[1756560173127,0.22621216,108440.0,108430.0,0.83667664]
[1756560173329,0.22621216,108440.0,108430.0,0.52406209]
[1756560173533,0.22621216,108440.0,108430.0,0.83667664]
[1756560173934,0.99962671,108440.0,108430.0,0.16326209]
[1756560174131,1.28146242,108440.0,108430.0,0.03522]
[1756560174332,1.28146242,108440.0,108430.0,0.00461]
[1756560174526,1.37718371,108440.0,108430.0,0.00461]
[1756560174730,1.46007874,108440.0,108420.0,0.05497]
[1756560174938,1.37025455,108430.0,108420.0,0.09019]
[1756560175942,1.37025455,108430.0,108420.0,0.09119]
[1756560176640,0.50501455,108430.0,108420.0,0.09119]
[1756560176830,0.1924,108430.0,108420.0,0.09219]
[1756560177034,1.27021455,108430.0,108420.0,0.09219]
[1756560177340,1.27021455,108430.0,108420.0,0.09119]
[1756560177844,0.9576,108430.0,108420.0,0.09219]
[1756560178037,1.27021455,108430.0,108420.0,0.09219]
[1756560179837,1.37021455,108430.0,108420.0,0.09219]
[1756560181648,1.0576,108430.0,108420.0,0.09219]
[1756560181843,1.37021455,108430.0,108420.0,0.03722]
[1756560182349,1.73101455,108430.0,108420.0,0.03722]
[1756560182540,1.73101455,108430.0,108420.0,0.002]
[1756560182743,0.96365088,108430.0,108420.0,0.002]
[1756560182945,1.82877088,108430.0,108420.0,0.04014]
[1756560183346,1.89501506,108430.0,108420.0,0.04014]
[1756560183548,0.66909506,108430.0,108420.0,0.09256]
[1756560183842,1.43421506,108430.0,108420.0,0.09256]
[1756560184446,1.43421506,108430.0,108420.0,0.09056]
[1756560184645,1.72977088,108430.0,108420.0,0.09056]
[1756560186152,0.86465088,108430.0,108420.0,0.09056]
[1756560186460,0.46337547,108430.0,108420.0,0.65317455]
[1756560186753,0.51565547,108430.0,108420.0,0.34056]
[1756560186946,0.15485547,108430.0,108420.0,1.01397455]
[1756560187146,0.10257547,108430.0,108420.0,1.01397455]
[1756560187957,0.001,108430.0,108420.0,1.01397455]
[1756560188340,0.05067742,108430.0,108420.0,1.01397455]
[1756560188748,0.001,108430.0,108420.0,1.01397455]
[1756560189256,0.001,108430.0,108420.0,1.87901455]
[1756560189459,0.001,108430.0,108420.0,2.1926291]
[1756560189646,0.02068834,108430.0,108420.0,1.88001455]
[1756560190655,0.04967822,108430.0,108420.0,1.88101455]
[1756560191049,0.06936656,108430.0,108420.0,1.88101455]
[1756560191249,0.04967822,108430.0,108420.0,1.88101455]
[1756560191450,0.06936656,108430.0,108420.0,1.88101455]
[1756560191756,0.01968834,108430.0,108420.0,1.88101455]
[1756560192049,0.20035911,108440.0,108430.0,0.09056]
[1756560192255,0.16786916,108440.0,108430.0,0.76397455]
[1756560192748,0.22014916,108440.0,108430.0,0.45136]
[1756560192942,0.22014916,108440.0,108430.0,0.76397455]
[1756560193452,0.16786916,108440.0,108430.0,0.76397455]
[1756560193855,0.22114916,108440.0,108430.0,0.76397455]
[1756560196351,0.16886916,108440.0,108430.0,1.01397455]
[1756560196654,0.13383916,108440.0,108430.0,1.01397455]
[1756560197655,0.13383916,108440.0,108430.0,1.08899425]
[1756560198454,0.06761369,108440.0,108430.0,1.08899425]
[1756560200653,0.06761369,108440.0,108430.0,1.95363425]
[1756560201257,0.06661369,108440.0,108430.0,1.95563425]
[1756560202162,0.09646547,108440.0,108430.0,1.95563425]
[1756560202360,0.11625552,108440.0,108430.0,1.95563425]
[1756560202851,0.11850547,108460.0,108430.0,2.04785335]
[1756560203056,0.19164686,108460.0,108450.0,0.38218455]
[1756560203258,0.19164686,108460.0,108450.0,1.24678455]
[1756560203459,0.01351277,108460.0,108450.0,0.06957]
[1756560203652,0.03503,108460.0,108450.0,0.38218455]
[1756560204453,0.07616779,108460.0,108450.0,0.38218455]
[1756560205561,0.12844779,108460.0,108450.0,0.38218455]
[1756560205761,0.12844779,108460.0,108450.0,0.74298455]
[1756560206258,0.12744779,108460.0,108450.0,0.74298455]
[1756560206962,0.12744779,108460.0,108450.0,0.43037]
[1756560207163,0.12744779,108460.0,108450.0,0.74298455]
[1756560213863,0.07516779,108460.0,108450.0,0.74298455]
[1756560214270,0.12803779,108460.0,108450.0,0.74298455]
[1756560214671,0.07516779,108460.0,108450.0,0.74298455]
[1756560215574,0.04013779,108460.0,108450.0,1.32461814]
[1756560215971,0.11901058,108480.0,108460.0,0.0553]
[1756560216171,0.11901058,108480.0,108470.0,0.40550455]
[1756560216172,0.15518058,108480.0,108470.0,0.40550455]
[1756560216877,0.10231058,108480.0,108470.0,0.40550455]
[1756560217173,0.06614058,108480.0,108470.0,0.76630455]
[1756560217370,0.10231058,108480.0,108470.0,0.76630455]
[1756560217571,0.10531058,108480.0,108470.0,0.76630455]
[1756560217770,0.06914058,108480.0,108470.0,0.76630455]
[1756560218074,0.06814058,108480.0,108470.0,0.76630455]
[1756560218871,0.10431058,108480.0,108470.0,0.76630455]
[1756560219269,0.15718058,108480.0,108470.0,1.63046455]
[1756560219878,0.19561376,108480.0,108470.0,1.63046455]
[1756560221378,0.19561376,108480.0,108470.0,1.31785]
[1756560221578,0.19561376,108480.0,108470.0,1.63046455]
[1756560222974,0.14274376,108480.0,108470.0,1.63046455]
[1756560223371,0.14274376,108480.0,108470.0,1.31785]
[1756560223581,0.14274376,108480.0,108470.0,1.63046455]
[1756560225889,0.19561376,108480.0,108470.0,0.76630455]
[1756560226083,0.19561376,108480.0,108470.0,1.63022455]
[1756560226285,0.19561376,108480.0,108470.0,1.31761]
[1756560226482,0.19561376,108480.0,108470.0,1.63022455]
[1756560229274,0.19561376,108480.0,108470.0,0.76630455]
[1756560229579,0.19561376,108480.0,108470.0,1.63010455]
[1756560231887,0.14274376,108480.0,108470.0,1.63010455]
[1756560232984,0.10657376,108480.0,108470.0,1.63010455]
[1756560242596,0.04043318,108480.0,108470.0,1.63010455]
[1756560243999,0.04043318,108480.0,108470.0,0.76630455]
[1756560244204,0.04043318,108480.0,108470.0,1.62962455]
[1756560245307,0.04043318,108480.0,108470.0,1.62946409]
[1756560248801,0.04043318,108480.0,108470.0,0.76614409]
[1756560248996,0.13209318,108480.0,108470.0,0.76614409]
[1756560249202,0.13209318,108480.0,108470.0,1.62930409]
[1756560249401,0.13209318,108480.0,108470.0,1.31685]
[1756560249706,0.19823376,108480.0,108470.0,1.62930409]
[1756560250408,0.14433376,108480.0,108470.0,1.62930409]
[1756560250608,0.10657376,108480.0,108470.0,1.94175818]
[1756560251001,0.10657376,108480.0,108470.0,1.62930409]
[1756560251414,0.10657376,108480.0,108470.0,0.76614409]
[1756560251415,0.14433376,108480.0,108470.0,0.76614409]
[1756560251605,0.14433376,108480.0,108470.0,1.62922409]
[1756560251606,0.19823376,108480.0,108470.0,1.62922409]
[1756560252302,0.51068785,108480.0,108470.0,1.62918409]
[1756560253213,0.50868785,108480.0,108470.0,1.62918409]
[1756560253614,0.50868785,108480.0,108470.0,0.76614409]
[1756560253808,0.50868785,108480.0,108470.0,1.62918409]
[1756560254003,0.19623376,108480.0,108470.0,1.62918409]
[1756560254414,0.19623376,108480.0,108470.0,1.31673]
[1756560254606,0.19623376,108480.0,108470.0,1.62918409]
[1756560255409,0.14233376,108480.0,108470.0,1.62918409]
[1756560255809,0.21585174,108480.0,108470.0,1.62918409]
[1756560256019,0.14971116,108480.0,108470.0,1.62918409]
[1756560257821,0.14971116,108480.0,108470.0,1.31673]
[1756560258019,0.14971116,108480.0,108470.0,1.62918409]
[1756560258321,0.09581116,108480.0,108470.0,1.62918409]
[1756560260020,0.05805116,108480.0,108470.0,1.94163818]
[1756560260419,0.05805116,108480.0,108470.0,1.62918409]
[1756560260821,0.05805116,108480.0,108470.0,1.94163818]
[1756560262121,0.05805116,108480.0,108470.0,1.62918409]
[1756560263220,0.05805116,108480.0,108470.0,1.94163818]
[1756560263820,0.05805116,108480.0,108470.0,1.62918409]
[1756560264121,0.05805116,108480.0,108470.0,1.94163818]
[1756560266119,0.12419174,108480.0,108470.0,1.62918409]
[1756560267323,0.12419174,108480.0,108470.0,1.94163818]
[1756560268024,0.12419174,108480.0,108470.0,1.62918409]
[1756560269722,0.16195174,108480.0,108470.0,0.45369]
[1756560269916,0.21585174,108480.0,108470.0,0.76614409]
[1756560270117,0.52830583,108480.0,108470.0,1.62862409]
[1756560270317,0.52830583,108480.0,108470.0,0.76614409]
[1756560270513,0.46216525,108480.0,108470.0,1.62862409]
[1756560271727,0.14971116,108480.0,108470.0,1.62862409]
[1756560271926,0.09581116,108480.0,108470.0,1.62862409]
[1756560272728,0.16195174,108480.0,108470.0,1.62862409]
[1756560273227,0.21287174,108480.0,108470.0,1.62862409]
[1756560275828,0.52532583,108480.0,108470.0,1.62862409]
[1756560276928,0.50570785,108480.0,108470.0,1.62862409]
[1756560277130,0.21305475,108480.0,108470.0,1.62862409]
[1756560277329,0.47458884,108480.0,108470.0,1.62862409]
[1756560277730,0.16213475,108480.0,108470.0,1.62862409]
[1756560278325,0.47458884,108480.0,108470.0,1.62862409]
[1756560278929,0.16213475,108480.0,108470.0,1.62862409]
[1756560280127,0.47458884,108480.0,108470.0,1.62862409]
[1756560280332,0.52550884,108480.0,108470.0,1.62862409]
[1756560281728,0.52550884,108480.0,108470.0,0.76614409]
[1756560281729,0.45936826,108480.0,108470.0,0.76614409]
[1756560281934,0.45936826,108480.0,108470.0,1.62830409]
[1756560282134,0.52550884,108480.0,108470.0,1.62830409]
[1756560283634,0.32799345,108480.0,108470.0,1.62830409]
[1756560285334,0.37428468,108480.0,108470.0,1.62830409]
[1756560285737,0.16335181,108480.0,108470.0,1.62830409]
[1756560285936,0.11243181,108480.0,108470.0,1.62830409]
[1756560296139,0.04629123,108480.0,108470.0,1.62830409]
[1756560296339,0.0376,108480.0,108470.0,1.57300409]
[1756560296542,0.0376,108480.0,108470.0,1.62489409]
[1756560296945,0.44626912,108490.0,108470.0,1.57300409]
[1756560296946,0.13381503,108490.0,108470.0,1.57300409]
[1756560297148,0.50359471,108490.0,108480.0,0.39893409]
[1756560298149,0.50359471,108490.0,108480.0,0.32420793]
[1756560298349,0.55028662,108490.0,108480.0,0.03459]
[1756560298541,0.55228662,108490.0,108480.0,0.34704409]
[1756560299046,0.53256103,108490.0,108480.0,0.34704409]
[1756560299952,0.55231689,108490.0,108480.0,0.34704409]
[1756560300344,0.55231689,108490.0,108480.0,0.39893409]
[1756560300851,0.55231689,108490.0,108480.0,0.08648]
[1756560301046,0.05683,108480.0,108470.0,0.09177]
[1756560301247,0.73680404,108480.0,108470.0,0.00617649]
[1756560301448,0.42434995,108480.0,108470.0,0.31863058]
[1756560302350,0.78514995,108480.0,108470.0,0.31863058]
[1756560304747,0.11189586,108480.0,108470.0,0.31863058]
[1756560304952,0.42434995,108480.0,108470.0,0.31863058]
[1756560307151,0.50724498,108480.0,108470.0,0.31863058]
[1756560307551,0.19479089,108480.0,108470.0,0.67943058]
[1756560307746,0.11189586,108480.0,108470.0,0.67943058]
[1756560308945,0.11189586,108480.0,108470.0,0.36697649]
[1756560309144,0.11189586,108480.0,108470.0,0.67943058]
[1756560310950,0.01975586,108480.0,108470.0,1.24188467]
[1756560311357,0.06951144,108480.0,108470.0,1.24188467]
[1756560311548,0.06946512,108480.0,108470.0,1.24188467]
[1756560311854,0.01970954,108480.0,108470.0,1.24188467]
[1756560312054,0.04975852,108480.0,108470.0,1.24188467]
[1756560312351,0.04975852,108480.0,108470.0,2.10280467]
[1756560312545,0.06946806,108480.0,108470.0,2.10280467]
[1756560315358,0.06946806,108480.0,108470.0,1.79032506]
[1756560315853,0.16160806,108480.0,108470.0,0.61697649]
[1756560316058,0.16160806,108480.0,108470.0,0.92940506]
[1756560316255,0.16160806,108480.0,108470.0,1.79016506]
[1756560316561,0.16160806,108480.0,108470.0,0.92940506]
[1756560316858,0.16160806,108480.0,108470.0,1.79012506]
[1756560317760,0.40330339,108490.0,108470.0,1.84736506]
[1756560317963,0.03531,108480.0,108470.0,1.59736506]
[1756560318561,0.03531,108480.0,108470.0,0.73664506]
[1756560318764,0.03531,108480.0,108470.0,1.28485649]
[1756560319363,0.03531,108480.0,108470.0,1.59728506]
[1756560319964,0.09214,108480.0,108470.0,1.59728506]
[1756560321465,0.03531,108480.0,108470.0,1.59728506]
[1756560322058,0.09214,108480.0,108470.0,1.59712506]
[1756560322364,0.15848206,108480.0,108470.0,1.59712506]
[1756560322963,0.09214,108480.0,108470.0,1.59712506]
[1756560324765,0.03531,108480.0,108470.0,1.59712506]
[1756560325664,0.10165206,108480.0,108470.0,1.59712506]
[1756560326466,0.15848206,108480.0,108470.0,1.59712506]
[1756560329367,0.15848206,108480.0,108470.0,0.73664506]
[1756560329571,0.15848206,108480.0,108470.0,1.59688506]
[1756560331770,0.10165206,108480.0,108470.0,1.59688506]
[1756560332071,0.12133955,108480.0,108470.0,1.59688506]
[1756560332263,0.05499749,108480.0,108470.0,1.59688506]
[1756560334373,0.12133955,108480.0,108470.0,1.59688506]
[1756560334967,0.36742857,108490.0,108470.0,1.22721649]
[1756560335167,0.03654,108480.0,108470.0,1.53964506]
[1756560335768,0.03654,108480.0,108470.0,1.59658506]
[1756560335967,0.03654,108480.0,108470.0,0.42391649]
[1756560335968,0.40396857,108480.0,108470.0,0.42391649]
[1756560336176,0.40396857,108480.0,108470.0,1.28383649]
[1756560337275,0.4040735,108480.0,108470.0,1.59636999]
[1756560339672,0.4040735,108480.0,108470.0,1.59628999]
[1756560339872,0.716607,108480.0,108470.0,0.73644999]
[1756560340072,0.4040735,108480.0,108470.0,0.73644999]
[1756560341776,0.09154,108480.0,108470.0,0.73644999]
[1756560341978,0.4040735,108480.0,108470.0,0.73644999]
[1756560343867,1.427407,108480.0,108470.0,0.06311649]
[1756560344681,0.80234,108480.0,108470.0,0.06311649]
[1756560344873,1.0148735,108480.0,108470.0,0.37564999]
[1756560345273,0.6540735,108480.0,108470.0,0.37564999]
[1756560351085,0.73696853,108480.0,108470.0,0.37564999]
[1756560351585,0.6540735,108480.0,108470.0,0.37564999]
[1756560351986,0.73696853,108480.0,108470.0,0.37564999]
[1756560352287,1.04950203,108480.0,108470.0,0.37564999]
[1756560358200,0.966607,108480.0,108470.0,0.37564999]
[1756560359200,0.716607,108480.0,108470.0,0.37564999]
[1756560361296,0.716607,108480.0,108470.0,0.39415673]
[1756560361496,0.7829281,108480.0,108470.0,0.39415673]
[1756560362397,0.1578611,108480.0,108470.0,0.39415673]
[1756560362596,0.0663211,108480.0,108470.0,0.39415673]
[1756560362795,1.34040355,108490.0,108480.0,0.05572]
[1756560362997,1.06337005,108490.0,108480.0,0.718677]
[1756560363200,0.20449005,108490.0,108480.0,0.718677]
[1756560363901,0.51702355,108490.0,108480.0,1.079477]
[1756560364101,0.20449005,108490.0,108480.0,1.079477]
[1756560364300,0.51702355,108490.0,108480.0,1.079477]
[1756560364503,0.51902355,108490.0,108480.0,1.079477]
[1756560365708,0.20649005,108490.0,108480.0,1.079477]
[1756560366002,0.51902355,108490.0,108480.0,1.079477]
[1756560366399,0.51902355,108490.0,108480.0,0.45441]
[1756560366594,0.87982355,108490.0,108480.0,0.03789]
[1756560366799,0.81350245,108490.0,108480.0,0.03789]
[1756560368697,0.50096895,108490.0,108480.0,0.09361]
[1756560368892,0.81350245,108490.0,108480.0,0.09361]
[1756560369099,0.81350245,108490.0,108480.0,0.03789]
[1756560370705,0.45270245,108490.0,108480.0,0.09361]
[1756560370906,0.47241496,108490.0,108480.0,0.09361]
[1756560371600,0.55530999,108490.0,108480.0,0.09361]
[1756560371805,0.47241496,108490.0,108480.0,0.09361]
[1756560372399,0.55530999,108490.0,108480.0,0.09361]
[1756560372599,0.55330999,108490.0,108480.0,0.09361]
[1756560373013,0.55330999,108490.0,108480.0,0.4061435]
[1756560373305,1.41166999,108490.0,108480.0,0.4061435]
[1756560374212,1.41166999,108490.0,108480.0,0.09361]
[1756560374506,1.41166999,108490.0,108480.0,0.4061435]
[1756560376007,1.41154999,108490.0,108480.0,0.4061435]
[1756560376195,1.32865496,108490.0,108480.0,0.4061435]
[1756560376804,1.32865496,108490.0,108480.0,0.7669435]
[1756560377300,1.01608146,108490.0,108480.0,0.7669435]
[1756560377506,1.32861496,108490.0,108480.0,1.079477]
[1756560377701,0.15788146,108490.0,108480.0,1.079477]
[1756560379510,0.22419408,108490.0,108480.0,1.079477]
[1756560380509,0.15788146,108490.0,108480.0,1.079477]
[1756560380705,0.16851913,108490.0,108480.0,1.329477]
[1756560381410,0.16851913,108490.0,108480.0,2.187437]
[1756560384504,0.10221146,108490.0,108480.0,2.187437]
[1756560384706,0.10221146,108490.0,108480.0,1.56237]
[1756560384906,0.10221146,108490.0,108480.0,2.187437]
[1756560386013,0.16851913,108490.0,108480.0,2.187437]
[1756560386207,0.46550485,108500.0,108490.0,0.05572]
[1756560386405,0.46550485,108500.0,108490.0,0.7669435]
[1756560387311,0.50401722,108500.0,108490.0,0.7669435]
[1756560388708,0.50601722,108500.0,108490.0,0.45441]
[1756560388912,0.50601722,108500.0,108490.0,0.7669435]
[1756560389915,0.43973256,108500.0,108490.0,0.7669435]
[1756560392718,0.43973256,108500.0,108490.0,0.45441]
[1756560393014,0.43973256,108500.0,108490.0,0.7669435]
[1756560393618,0.12719906,108500.0,108490.0,0.7669435]
[1756560393818,0.12519906,108500.0,108490.0,0.7669435]
[1756560394022,0.12519906,108500.0,108490.0,1.6242635]
[1756560394919,0.07401237,108500.0,108490.0,1.6242635]
[1756560395917,0.12810237,108500.0,108490.0,1.6242635]
[1756560396117,0.14029401,108500.0,108490.0,1.6242635]
[1756560396922,0.19438401,108500.0,108490.0,1.6242635]
[1756560398631,0.19438401,108500.0,108490.0,0.7669435]
[1756560398830,0.19438401,108500.0,108490.0,1.6241035]
[1756560399232,0.14029401,108500.0,108490.0,1.6241035]
[1756560403433,0.14029401,108500.0,108490.0,1.69888263]
[1756560404336,0.14029401,108500.0,108490.0,0.84172263]
[1756560404533,0.14029401,108500.0,108490.0,1.69860263]
[1756560408942,0.14029401,108500.0,108490.0,1.33780263]
[1756560409142,0.14029401,108500.0,108490.0,1.6238235]
[1756560409542,0.14029401,108500.0,108490.0,0.7669435]
[1756560409745,0.14029401,108500.0,108490.0,1.6235435]
[1756560410342,0.14029401,108500.0,108490.0,0.7669435]
[1756560410643,0.14029401,108500.0,108490.0,1.6234635]
[1756560411445,0.14029401,108500.0,108490.0,1.6234235]
[1756560412146,0.14029401,108500.0,108490.0,0.7669435]
[1756560412348,0.19438401,108500.0,108490.0,1.6233435]
[1756560412941,0.50691751,108500.0,108490.0,0.4061435]
[1756560413242,0.50691751,108500.0,108490.0,0.09361]
[1756560413243,0.81953323,108500.0,108490.0,0.09361]
[1756560413543,0.77279071,108500.0,108490.0,0.4061435]
[1756560413743,0.46025721,108500.0,108490.0,0.4061435]
[1756560413939,1.54995457,108500.0,108490.0,0.09361]
[1756560414146,1.20568574,108500.0,108490.0,0.03789]
[1756560414341,1.12279071,108500.0,108490.0,0.0928]
[1756560416549,1.12279071,108500.0,108490.0,0.4053335]
[1756560416737,0.49772371,108500.0,108490.0,0.4053335]
[1756560416941,1.02279071,108500.0,108490.0,0.4053335]
[1756560419150,0.77279071,108500.0,108490.0,0.4053335]
[1756560419649,0.77279071,108500.0,108490.0,0.0928]
[1756560419850,0.77279071,108500.0,108490.0,0.4053335]
[1756560420148,0.14772371,108500.0,108490.0,0.4053335]
[1756560420351,0.85568574,108500.0,108490.0,0.4053335]
[1756560422345,0.77279071,108500.0,108490.0,0.4053335]
[1756560423346,0.14772371,108500.0,108490.0,0.0928]
[1756560423546,0.46025721,108500.0,108490.0,0.7661335]
[1756560423852,0.14772371,108500.0,108490.0,0.7661335]
[1756560424051,0.46025721,108500.0,108490.0,0.7661335]
[1756560426956,0.52659214,108500.0,108490.0,0.7661335]
[1756560433165,0.52659214,108500.0,108490.0,0.4536]
[1756560433365,0.52659214,108500.0,108490.0,0.7661335]
[1756560433663,1.38203214,108500.0,108490.0,0.7661335]
[1756560433858,1.31569721,108500.0,108490.0,0.7661335]
[1756560436263,1.14028899,108500.0,108490.0,0.7661335]
[1756560436460,1.14016899,108500.0,108490.0,0.7661335]
[1756560437065,1.22306402,108500.0,108490.0,0.7661335]
[1756560440370,1.25624783,108500.0,108490.0,0.7661335]
[1756560441068,0.40092783,108500.0,108490.0,0.7661335]
[1756560441269,1.25600783,108500.0,108490.0,0.7661335]
[1756560443874,1.25600783,108500.0,108490.0,0.4536]
[1756560444065,1.25600783,108500.0,108490.0,0.7661335]
[1756560444266,1.34410783,108500.0,108490.0,0.72762613]
[1756560448376,1.36399388,108500.0,108490.0,0.72762613]
[1756560448674,0.50891388,108500.0,108490.0,0.72762613]
[1756560448877,1.36363388,108500.0,108490.0,0.72762613]
[1756560449878,0.50891388,108500.0,108490.0,0.72762613]
[1756560450174,1.39131839,108500.0,108490.0,0.72762613]
[1756560452269,1.39119839,108500.0,108490.0,0.72762613]
[1756560457784,1.39119839,108500.0,108490.0,0.36682613]
[1756560458088,1.39119839,108500.0,108490.0,0.72762613]
[1756560461093,1.39119839,108500.0,108490.0,0.36682613]